Cogmind - Beta 13 @@@ ROGUE MODE // 2024.04.07 @ 19:43:32 Player: Cwaftwer Result: Destroyed by 0O-CLS(R) with Subdweller Laser Performance ------------- Evolutions (0) 0 Regions Visited (3) 600 Robots Destroyed (12) 60 Value Destroyed (200) 200 Prototype IDs (0) 0 Alien Tech Used (0) 0 Bonus (0) 0 TOTAL SCORE: 860 Bonus ------- None Cogmind --------- Core Integrity 0/250 Matter 234/300 Energy 179/200 System Corruption 0% Temperature Cool (12) Movement Rolling (110) Location -10/Subcaves Parts ------- > --- POWER (1) -------- Subdweller Power Source > --- PROPULSION (2) --- Subdweller Monowheel Subdweller Monowheel > --- UTILITY (2) ------ Improved Heat Sink Small Storage Unit > --- WEAPON (2) ------- Beamcaster Battle Rifle > --- INVENTORY (8) ---- Wheel Utility Shielding Scrap Shield Subdweller Machine Gun Mining Laser Peak State ------------ > --- POWER ------------ Light Angular Momentum Engine > --- PROPULSION ------- Subdweller Monowheel Subdweller Monowheel > --- UTILITY ---------- Improved Heat Sink Small Storage Unit > --- WEAPON ----------- Beamcaster Heavy Assault Rifle > --- INVENTORY -------- Ion Engine Light Ion Engine Wheel Utility Shielding Scrap Shield Assault Rifle Mining Laser [Rating: 21] Favorites ----------- Power Ion Engine Engine Ion Engine Propulsion Aluminum Leg Leg Aluminum Leg Wheel Subdweller Monowheel Utility Small Storage Unit Device Seismic Detector Storage Small Storage Unit Weapon Medium Laser Energy Gun Medium Laser Ballistic Gun Assault Rifle Special Weapon Mining Laser Build | -11 -10 -10 -10 ------- Run | Yrd Mat Min Sub Slots Evolved . | . . . . Power . | . . . . Propulsion . | . . . . Utility . | . . . . Weapon . | . . . . Parts Attached 27 | 7 . . 20 Power 4 | 1 . . 3 Engine 4 | 1 . . 3 Core . | . . . . Reactor . | . . . . Propulsion 7 | 2 . . 5 Treads . | . . . . Leg 2 | 2 . . . Wheel 5 | . . . 5 Hover . | . . . . Flight . | . . . . Utility 4 | 2 . . 2 Device 3 | 1 . . 2 Storage 1 | 1 . . . Processor . | . . . . Hackware . | . . . . Protection . | . . . . Artifact . | . . . . Weapon 12 | 2 . . 10 Energy Gun 4 | 1 . . 3 Energy Cannon . | . . . . Ballistic Gun 6 | 1 . . 5 Ballistic Cannon . | . . . . Launcher . | . . . . Special Weapon 2 | . . . 2 Impact Weapon . | . . . . Slashing Weapon . | . . . . Piercing Weapon . | . . . . Special Melee Weapon . | . . . . Unidentified Prototypes . | . . . . Parts Lost 5 | . . . 5 Power 1 | . . . 1 Propulsion 2 | . . . 2 Utility 1 | . . . 1 Weapon 1 | . . . 1 Highest Loss Streak 3 | . . . 3 To Critical Strikes . | . . . . Average Slot Usage (%) 98 | . 100 100 97 Engine 13 | . 14 14 13 Leg 13 | . 28 28 4 Wheel 13 | . . . 21 Device 13 | . 14 14 13 Storage 14 | . 14 14 14 Energy Gun 12 | . 14 14 12 Ballistic Gun 14 | . 14 14 15 Naked Turns . | . . . . Heaviest Build 23 | 15 15 15 23 Greatest Support 40 | 20 20 20 40 Greatest Overweight (x) 1 | . . . 1 Average Overweight (x) . | . . . . Largest Inventory Capacity 8 | 8 8 8 8 Average Capacity 7 | 7 8 8 8 Most Carried 8 | 3 6 6 8 Average Carried 5 | 1 3 6 7 Final Capacity 8 | 8 8 8 8 Final Carried 6 | 2 6 6 6 Class Distribution -------------------- 55% | Mutant 44% | Scavenger-Mutant Dominant Class ---------------- Mutant | -10/Materials Mutant | -10/Mines Scavenger-Mutant | -10/Subcaves Resources | -11 -10 -10 -10 ----------- Run | Yrd Mat Min Sub Matter Collected 499 | 288 18 . 193 Remotely . | . . . . Salvage Created 315 | 111 46 . 158 Parts 26 | 7 3 . 16 Haulers Intercepted . | . . . . Recyclers Shooed 1 | 1 . . . Parts Field Recycled . | . . . . Retrieved Matter . | . . . . Parts Self-Destructed 12 | . . . 12 Prevented . | . . . . Kills | -11 -10 -10 -10 ------- Run | Yrd Mat Min Sub Combat Hostiles Destroyed 9 | . 3 . 6 Guns 9 | . 3 . 6 Classes Destroyed 4 | 2 1 . 1 Tunneler 2 | 2 . . . Recycler 1 | 1 . . . Swarmer 6 | . 3 . 3 Subdweller 3 | . . . 3 Best Kill Streak 3 | 3 3 . 3 Combat Bots Only 3 | . 3 . 3 Max Kills in Single Turn 1 | 1 1 . 1 Gunslinging . | . . . . Exploded . | . . . . Melee . | . . . . Uniques/NPCs Destroyed . | . . . . Combat | -11 -10 -10 -10 -------- Run | Yrd Mat Min Sub Hostile Shots Fired 77 | . 16 . 61 Missed 18 | . 3 . 15 Damage Taken 986 | . 109 . 877 Core 256 | . 6 . 250 Absorbed by Shields . | . . . . Core Remaining (%) 100 | 100 . . . Volleys Fired 43 | 6 6 . 31 Largest 2 | 2 2 . 2 Hottest 175 | 70 70 . 175 Shots Fired 85 | 12 12 . 61 Gun 82 | 12 12 . 58 Cannon . | . . . . Launcher . | . . . . Special 3 | . . . 3 Kinetic 40 | 6 6 . 28 Thermal 45 | 6 6 . 33 Explosive . | . . . . Electromagnetic . | . . . . Robot Hit Streak 13 | 3 6 . 13 Robot Miss Streak 3 | 3 3 . 2 Penetration Max . | . . . . Secondary Targets 5 | . 2 . 3 Max Gunslinging Chain 1 | . 1 . 1 Shots Hit Robots 57 | 6 7 . 44 Core Hits 17 | 4 3 . 10 Critical Kills . | . . . . Critical Parts Destroyed . | . . . . Critical Strikes . | . . . . Melee Attacks . | . . . . Impact . | . . . . Slashing . | . . . . Piercing . | . . . . Sneak Attacks . | . . . . Combat Hostiles . | . . . . Follow-up Attacks . | . . . . Damage Inflicted 806 | 73 91 . 642 Guns 806 | 73 91 . 642 Cannons . | . . . . Explosions . | . . . . Melee . | . . . . Ramming . | . . . . Kinetic 376 | 35 52 . 289 Thermal 430 | 38 39 . 353 Explosive . | . . . . Electromagnetic . | . . . . Impact . | . . . . Slashing . | . . . . Piercing . | . . . . Highest Corruption . | . . . . Average Corruption . | . . . . Corruption Purged . | . . . . Corruption Blocked . | . . . . Overload Shots . | . . . . Overflow Damage . | . . . . Projectiles . | . . . . Explosions . | . . . . Melee . | . . . . Knockbacks . | . . . . Impact . | . . . . Kinetic . | . . . . Secondary . | . . . . Self-Inflicted Damage . | . . . . Shots . | . . . . Rammed . | . . . . Targets Rammed . | . . . . Kicked . | . . . . Crushed . | . . . . Highest Temperature 54 | 18 54 . 2 Average Temperature 19 | 10 28 . 2 Received Heat Transfer 150 | . . . 150 Siege Activations . | . . . . Robots Corrupted . | . . . . Combat Hostiles . | . . . . Parts Fried . | . . . . Impact Corruptions . | . . . . Robots Melted . | . . . . Combat Hostiles . | . . . . Parts Melted . | . . . . Heat Transferred 925 | 111 111 . 703 Parts Sabotaged . | . . . . Parts Stolen . | . . . . Parts Stripped . | . . . . Power Chain Reactions . | . . . . Alert | -11 -10 -10 -10 ------- Run | Yrd Mat Min Sub Peak Influence 79 | 15 79 30 . Initial 30 | . 9 30 . Average 22 | 6 26 30 . Maximum Alert Level . | . . . . Low Security (%) 100 | 100 100 100 . Level 1 . | . . . . Level 2 . | . . . . Level 3 . | . . . . Level 4 . | . . . . Level 5 . | . . . . High Security . | . . . . Max Security . | . . . . Squads Dispatched 1 | . 1 . . Investigation 1 | . 1 . . Extermination . | . . . . Reinforcement . | . . . . Assault . | . . . . Garrison . | . . . . Intercept . | . . . . Searches Triggered . | . . . . Construction Impeded . | . . . . Haulers Reinforced . | . . . . Active Scanning Responses . | . . . . Cargo Convoy Interrupts . | . . . . Stealth | -11 -10 -10 -10 --------- Run | Yrd Mat Min Sub Distress Signals . | . . . . Communications Jammed . | . . . . Distress Signals . | . . . . Times Spotted 16 | . 3 . 13 Peak Tracking Total 4 | . 3 . 4 Tactical Retreats . | . . . . Traps | -11 -10 -10 -10 ------- Run | Yrd Mat Min Sub Traps Triggered 2 | . 1 . 1 Indirectly . | . . . . Trap Hack Attempts . | . . . . Triggered . | . . . . Disarmed . | . . . . Reprogrammed . | . . . . Reused . | . . . . Traps Extracted . | . . . . Installed . | . . . . Triggered . | . . . . Machines | -11 -10 -10 -10 ---------- Run | Yrd Mat Min Sub Machines Disabled . | . . . . Max in Single Turn . | . . . . Machines Repaired . | . . . . Machines Dismantled . | . . . . Machines Sabotaged . | . . . . Overloaded Fab Kills . | . . . . Hacking | -11 -10 -10 -10 --------- Run | Yrd Mat Min Sub Machines Accessed 3 | . 2 . 1 Terminals 2 | . 2 . . Fabricators . | . . . . Repair Stations . | . . . . Recycling Units . | . . . . Scanalyzers . | . . . . Garrison Access . | . . . . Total Hacks 5 | . 3 . 2 Successful 2 | . . . 2 Failed 3 | . 3 . . Catastrophic 2 | . 2 . . Database Lockouts . | . . . . Manual . | . . . . Terminals 3 | . 3 . . Fabricators . | . . . . Repair Stations . | . . . . Recycling Units . | . . . . Scanalyzers . | . . . . Garrison Access . | . . . . Terminal Hacks 2 | . . . 2 Record 2 | . . . 2 Fabricator Hacks . | . . . . Repair Station Hacks . | . . . . Recycling Unit Hacks . | . . . . Scanalyzer . | . . . . Garrison Access Hacks . | . . . . Unauthorized Hacks . | . . . . Terminals . | . . . . Fabricators . | . . . . Repair Stations . | . . . . Recycling Units . | . . . . Scanalyzers . | . . . . Garrison Access . | . . . . Data Cores Recovered . | . . . . Used . | . . . . Hacking Detections 2 | . 2 . . Full Trace Events . | . . . . Feedback Events . | . . . . Feedback Blocked . | . . . . Robot Schematics Acquired . | . . . . Robots Built . | . . . . Authchips . | . . . . Time . | . . . . Total Robot Build Rating . | . . . . Part Schematics Acquired . | . . . . Parts Built . | . . . . Authchips . | . . . . Time . | . . . . Total Part Build Rating . | . . . . Parts Repaired . | . . . . Time . | . . . . Parts Recycled . | . . . . Recycled Matter . | . . . . Retrieved Matter . | . . . . Retrieved Components . | . . . . Parts Scanalyzed . | . . . . Part Schematics Acquired . | . . . . Parts Damaged . | . . . . Bothacking | -11 -10 -10 -10 ------------ Run | Yrd Mat Min Sub Used RIF Installer . | . . . . Robots Hacked . | . . . . Non-combat . | . . . . Combat . | . . . . Robot Hacks Applied . | . . . . Relay Couplers Released . | . . . . Fabnet Peak Effective % . | . . . . Robots Rewired . | . . . . Allies Hacked . | . . . . Hacks Repelled . | . . . . Allies | -11 -10 -10 -10 -------- Run | Yrd Mat Min Sub Total Allies . | . . . . Largest Group . | . . . . Highest-Rated Group . | . . . . Highest-Rated Ally . | . . . . Total Orders . | . . . . Ally Attacks . | . . . . Total Damage . | . . . . Kills . | . . . . Allies Corrupted . | . . . . Allies Melted . | . . . . Intel | -11 -10 -10 -10 ------- Run | Yrd Mat Min Sub Robot Analysis Total . | . . . . Derelict Logs Recovered . | . . . . Drone Launches . | . . . . Drone Recoveries . | . . . . Exploration | -11 -10 -10 -10 ------------- Run | Yrd Mat Min Sub Turns Passed 1152 | 144 147 214 647 Spaces Moved 730 | 87 104 110 429 Core 12 | 12 . . . Treads . | . . . . Legs 363 | 75 104 110 74 Wheels 355 | . . . 355 Hover . | . . . . Flight . | . . . . Fastest Speed 50 | 50 120 120 95 Average Speed 113 | 110 120 120 111 Slowest Speed 190 | 120 120 120 190 Overloaded Moves . | . . . . Propulsion Burnouts . | . . . . Robots Hopped . | . . . . Cave-ins Triggered . | . . . . Exploration Rate (%) 18 | 5 14 29 26 Regions Visited 3 Branch Regions 2 Pre-discovered Areas 1 | . . 1 . Known Exits Taken . | . . . . Unknown Exits Taken 3 | 1 1 1 . Scrap Searched 1 | . . . 1 Spaces Dug . | . . . . Terrain Destroyed . | . . . . Melee . | . . . . Projectile . | . . . . AOE . | . . . . Terrain Rammed . | . . . . Walls Destroyed . | . . . . Machines Disabled . | . . . . Actions | -11 -10 -10 -10 --------- Run | Yrd Mat Min Sub Total 965 | 124 114 192 535 Wait 124 | 12 1 83 28 Move 727 | 86 103 109 429 Hop . | . . . . Pick Up 30 | 11 4 . 15 Fast Attach . | . . . . Attach 14 | 7 . . 7 Detach 1 | . . . 1 Swap 13 | . . . 13 Drop 13 | 2 . . 11 Fire 43 | 6 6 . 31 Melee . | . . . . Ram . | . . . . Kick . | . . . . Crush . | . . . . Escape Stasis . | . . . . Rewire . | . . . . Trap . | . . . . Miscellaneous . | . . . . Route ------- -11/Scrapyard -10/Materials -10/Mines -10/Subcaves History --------- Turn | Location | Event 2 | -11/Scrapyard | Met Revision 17 5 | -11/Scrapyard | Discovered new exit (range 15) 145 | -11/Scrapyard | Entered Materials 202 | -10/Materials | Discovered new exit (range 13) 292 | -10/Materials | Entered Mines 293 | -10/Mines | Learned location of Storage (-9) 317 | -10/Mines | Build established: Mutant 482 | -10/Mines | Discovered new exit (range 5) 506 | -10/Mines | Entered Subcaves 579 | -10/Subcaves | Ambushed by swarm of Subdwellers 628 | -10/Subcaves | Lost 3 allies 766 | -10/Subcaves | Core integrity fell below 50% 809 | -10/Subcaves | Lost 3 parts (1p1n1w) 935 | -10/Subcaves | Visited Clippyterm 1028 | -10/Subcaves | Core integrity fell below 20% 1047 | -10/Subcaves | Shifting Twisted Machinery released Sub. Monowheel 1082 | -10/Subcaves | Build established: Scavenger-Mutant 1153 | -10/Subcaves | Destroyed by 0O-CLS(R) with Subdweller Laser Last Messages --------------- with the algorithm, because no matter how much data I collect to feed it, half the time it still manages to suggest unhelpful sample queries and responses. --DD-NU8 >>Record! "Hexidium" It looks like you're searching for the Unchained HQ. I could tell you where it is but then I'd have to kill you. LB-0QF(u) tweaks Twisted Machinery. Sub. Monowheel shoots sparks and powers down. Dropped Broken Sub. Monowheel. Triggered Piercing Trap. Spikes shoot up from the floor. Critical hit (Impale). LB-0QF(u) tweaks Twisted Machinery. Sub. Monowheel falls loose from the Twisted Machinery. Acquired Sub. Monowheel. Sub. Power Source shoots sparks and powers down. Dropped Broken Sub. Power Source. Map ----- +----------------------------------------------------+ | ?????????????????????????????????????????????????? | | ?????????????????????????????????????????????????? | | ?$???????????????????????????????????????????????? | | ????????????????????????????????????????????????? | | ?????###????###??????####????????????????????????? | | ????? ###### ####### ##???????????????????????? | | ##??# ## ## ##???###????????????????? | | ### # #??## ##???????????????? | | ##?# #???????????????? | | ??## ## ### #???????????????? | | ??# ## ### * #????????????????? | | ?## #?# ###?##### ##????????????????? | | ## #??### #?????## ####?????????????????? | | #?????## #??????# #????????????????????? | | ##??### #??##### ####????????????????????? | | #### # #???# ##???????????????????????? | | ###### #????????????????????????? | | # #### #????????????????????????? | | # # ### ##????????????????????????? | | ##" ## ## #?????????????????????????? | | # "#"""""#" #####?????????????????????? | | ##"""#" "## ##????????????????????? | | ?#""###"############ #????????????????????? | | """"#?###??????????# #??????#????? ???????? | | """ ??????????????## ##???? ## ???????? | | """ ??????????????## @ #??? ??????? | | # """??????????????# ## ??????? | | ??# "??????????????## R #??????????? | | ????????????????????# R #??????????? | | ???????????????????# #??????????? | | ??????????????????# #?????????? | | ??????????????????# ???????? | | ?????????????????# ## ## #### ????????? | | ?????????????????# ### #?##?? #????????????? | | ?????????????????# #??##??????#????????????? | | ???????????????? ????????????????????????? | | ??????????????? #????????????????????????? | | ???????????????## ?????????????????????????? | | ????????????????# ?????????????????????????? | | ?????????????????? ?????????????????????????? | | ????????????????????###??????????????????????????? | | ?????????????????????????????????????????????????? | | ?????????????????????????????????????????????????? | | ?????????????????????????????????????????????????? | | ?????????????????????????????????????????????????? | | ?????????????????????????????????????????????????? | | ?????????????????????????????????????????????????? | | ?????????????????????????????????????????????????? | | ?????????????????????????????????????????????????? | | ?????????????????????????????????????????????????? | +----------------------------------------------------+ Best States ------------- Heat Dissipation 39 Energy Generation 18 Energy Capacity 250 Matter Stores 300 Matter Capacity 300 Sight Range 16 Terrain Scan Density 10 Evasion (%) 55 Item Schematics ----------------- None Robot Schematics ------------------ None Fabricated ------------ Nothing Alien Tech Used ----------------- None Achievements -------------- None Challenges ------------ None Game ------ Seed SlugSmallGreatsword Manual? 0 Play Time 00:16:56 Cumulative 16.3 hours Start 2024.04.07 @ 19:29:13 End 2024.04.07 @ 19:43:32 Sessions 1 Manual Loads 0 Difficulty Rogue Special Mode None Game No. 24 Rogue 23 Adventurer 1 Explorer 0 Win Type - Total 0 Types 0/0/0/0/0/0/0/0/0 Lore% 16 Gallery% 23 Achievement% 19 Wizard Run 0 Options --------- Layout 1 ASCII 0 Keyboard 0 Movement Mouse Keybinds 0 Fullscreen 1 Font 24/Smallcaps Map View 50x40 Zoom Use 0% Tactical HUD 0 Map Filters NONE Filters NONE Steam 1 RUN: e7e93d8e-c237-49e1-a576-3e6314440fad